fUST/lending_fUST_20250105
["ID","MTS","AMOUNT","RATE_DAILY","PERIOD"]
[347668855,1736045443757,-433.82632189,0.00019178,2]
[347668870,1736045446463,-66.17367811,0.00019178,2]
[347668871,1736045446473,-917.61,0.00019178,2]
[347668872,1736045446483,-500.0,0.00019178,2]
[347668873,1736045446492,-1662.78,0.00019178,2]
[347668875,1736045446502,-500.0,0.00019178,2]
[347668877,1736045446511,-500.0,0.00019178,2]
[347668879,1736045446521,-151.0,0.00019178,2]
[347668881,1736045446531,-151.0,0.00019178,2]
[347668883,1736045446540,-151.0,0.00019178,2]
[347668885,1736045446549,-151.0,0.00019178,2]
[347668887,1736045446558,-151.0,0.00019178,2]
[347668889,1736045446568,-214.913164,0.00019178,2]
[347668891,1736045446578,-500.0,0.00019178,2]
[347668893,1736045446588,-309.63820843,0.00019178,2]
[347668902,1736045578330,800.0,0.00025,120]
[347668905,1736045858752,322.390602,0.00013973,2]
[347668921,1736046411861,2392.68231701,0.00014002,2]
[347668922,1736046411899,8634.46393522,0.00014002,2]
[347668983,1736046632810,-490.827,0.0001615,2]
[347668984,1736046632820,-490.827,0.00016313,2]
[347668986,1736046632830,-300.0,0.00017882,2]
[347668988,1736046632839,-24900.0,0.00017883,2]
[347668990,1736046632849,-254.532556,0.00017986,2]
[347668992,1736046632858,-522.085,0.0001822,2]
[347668994,1736046632868,-214.1837381,0.00018378,2]
[347668995,1736046632877,-153.0,0.00018378,2]
[347669014,1736046633052,-466.8640796,0.0001839,2]
[347669015,1736046633062,-153.0,0.00018578,2]
[347669016,1736046633071,-153.6666692,0.00018578,2]
[347669017,1736046633083,-214.5513576,0.00018578,2]
[347669018,1736046633092,-214.5513576,0.00018578,2]
[347669019,1736046633102,-153.0,0.00018578,2]
[347669020,1736046633111,-153.6666692,0.00018578,2]
[347669021,1736046633121,-153.0,0.00018652,2]
[347669022,1736046633130,-153.0,0.00018652,2]
[347669023,1736046633140,-394.0,0.00018767,2]
[347669024,1736046633150,-153.6911881,0.00018852,2]
[347669025,1736046633159,-153.0,0.00018852,2]
[347669026,1736046633169,-613.01582293,0.000189,2]
[347669027,1736046633181,-463.2401,0.000189,2]
[347669028,1736046633193,-4151.10531493,0.000189,2]
[347669029,1736046633202,-395.89961378,0.000189,2]
[347669030,1736046633212,-223.1986434,0.00018986,2]
[347669031,1736046633221,-302.90913937,0.00019,2]
[347669032,1736046633231,-916.82061252,0.00019038,2]
[347669033,1736046633242,-353.60750811,0.00019038,2]
[347669051,1736046638575,-1069.66884816,0.00019038,2]
[347669054,1736046638590,-2887.26426904,0.00019038,2]
[347669055,1736046638599,-163.98376503,0.00019078,2]
[347669056,1736046638609,-300.0,0.000191,8]
[347669057,1736046638618,-504.42898113,0.00019173,2]
[347669058,1736046638629,-240.37156395,0.00019173,2]
[347669059,1736046638638,-150.633,0.00019175,2]
[347669060,1736046638647,-150.0,0.00019175,2]
[347669061,1736046638656,-216.713,0.00019175,2]
[347669062,1736046638665,-150.0,0.00019175,2]
[347669063,1736046638675,-535.0,0.00019175,2]
[347669064,1736046638683,-1458.03821317,0.00019175,2]
[347669065,1736046638694,-625.96178683,0.00019175,2]
[347669066,1736046638704,-751.14739296,0.00019175,2]
[347669067,1736046638715,-1504.09645731,0.00019175,2]
[347669080,1736046641930,-64.75614973,0.00019175,2]
[347669081,1736046641940,-500.0,0.00019175,5]
[347669082,1736046641951,-5227.36123783,0.00019176,2]
[347669083,1736046641962,-280.52,0.00019176,2]
[347669084,1736046641972,-178.63323167,0.00019177,2]
[347669085,1736046641982,-9423.41938924,0.00019178,2]
[347669086,1736046641992,-4963.12868476,0.00019178,2]
[347669087,1736046642023,-328.43522094,0.00019178,2]
[347669088,1736046642036,-1005.6745737,0.00019178,2]
[347669089,1736046642048,-3044.38773997,0.00019178,2]
[347669115,1736046643730,-1739.26615875,0.00019178,2]
[347669117,1736046643742,-13489.48676206,0.00019178,2]
[347669119,1736046643753,-8961.86023655,0.00019178,2]
[347669121,1736046643764,-3266.01256296,0.00019178,2]
[347669124,1736046643869,-19056.0,0.00019178,2]
[347669182,1736046646609,-13911.57959515,0.00019178,2]
[347669200,1736046646766,-500.0,0.00019178,2]
[347669528,1736046915903,321.686766,0.00013973,2]
[347669531,1736047454568,1000.0,0.00025,120]
[347669535,1736047719814,463.64887985,0.0002,120]
[347669536,1736047798845,345.3853,0.00013973,2]
[347669592,1736047832978,-772.36871586,0.00015957,2]
[347669594,1736047832987,-772.36871586,0.00016118,2]
[347669596,1736047832997,-308.04442649,0.00017643,2]
[347669598,1736047833010,-464.32428937,0.00017643,2]
[347669600,1736047833019,-3.71571063,0.00017643,2]
[347669602,1736047833030,-393.26620965,0.00017643,2]
[347669604,1736047833039,-300.0,0.00017731,2]
[347669606,1736047833049,-16792.74091625,0.00017732,2]
[347669612,1736047833087,-8107.25908375,0.00017732,2]
[347669614,1736047833098,-5126.15905981,0.000179,2]
[347669616,1736047833107,-572.516362,0.00018027,2]
[347669618,1736047833116,-5126.15905965,0.00018072,2]
[347669620,1736047833125,-7402.4414676,0.00018103,2]
[347669622,1736047833134,-704.06238413,0.0001812,2]
[347669624,1736047833143,-531.153,0.0001822,2]
[347669625,1736047833152,-5126.15905965,0.00018245,2]
[347669627,1736047833162,-153.0,0.00018352,2]
[347669629,1736047833171,-635.85433916,0.00018417,2]
[347669753,1736047838684,-628.08520242,0.00018417,2]
[347669755,1736047838696,-360.0,0.00018417,2]
[347669757,1736047838707,-1644.01833806,0.00018417,2]
[347669758,1736047838718,-1858.20118001,0.00018417,2]
[347669759,1736047838728,-3000.0,0.000185,2]
[347669760,1736047838737,-3185.05025383,0.0001859,2]
[347669761,1736047838748,-324.22683165,0.0001859,2]
[347669762,1736047838759,-716.549999,0.0001859,2]
[347669763,1736047838813,-2643.86393773,0.00018233,2]
[347669764,1736047838823,-900.33197517,0.0001859,2]
[347669765,1736047838832,-259.664,0.00018705,2]
[347669766,1736047838841,-5126.15905965,0.00018762,2]
[347669767,1736047838851,-704.06238406,0.00018776,2]
[347669768,1736047838861,-404.16071061,0.000188,2]
[347669769,1736047838870,-5126.15905965,0.00018934,2]
[347669770,1736047838879,-253.8403279,0.00018986,2]
[347669771,1736047838889,-154.2,0.00018986,2]
[347669772,1736047838898,-3000.0,0.00019,2]
[347669773,1736047838908,-9769.0,0.00019,2]
[347669774,1736047838917,-302.9394212,0.00019,2]
[347669775,1736047838927,-154.0,0.0001907,2]
[347669776,1736047838936,-154.0,0.0001907,2]
[347669778,1736047838947,-154.0,0.0001907,2]
[347669780,1736047838956,-154.0,0.0001907,2]
[347669782,1736047838966,-154.0,0.0001907,2]
[347669783,1736047838974,-154.0,0.0001907,2]
[347669786,1736047838987,-156.81,0.0001907,2]
[347669788,1736047838996,-163.98376503,0.00019078,2]
[347669790,1736047839007,-5126.15905965,0.00019107,2]
[347669792,1736047839016,-1001.60115202,0.0001915,2]
[347669794,1736047839025,-268.0,0.0001917,2]
[347669796,1736047839034,-160.34614342,0.0001917,2]
[347669798,1736047839044,-505.54025448,0.00019177,2]
[347669800,1736047839054,-251.9194225,0.00019177,2]
[347669802,1736047839064,-5474.18224298,0.00019178,2]
[347669804,1736047839074,-58979.85277238,0.00019178,2]
[347669806,1736047839084,-151.0,0.00019178,2]
[347669808,1736047839093,-151.0,0.00019178,2]
[347669810,1736047839104,-151.0,0.00019178,2]
[347669812,1736047839113,-151.0,0.00019178,2]
[347669814,1736047839122,-261.364725,0.00019178,2]
[347669816,1736047839131,-180.514198,0.00019178,2]
[347669818,1736047839141,-151.0,0.00019178,2]
[347669819,1736047839151,-151.0,0.00019178,2]
[347669820,1736047839160,-151.0,0.00019178,2]
[347669821,1736047839169,-151.0,0.00019178,2]
[347669822,1736047839181,-151.0,0.00019178,2]
[347669823,1736047839191,-155.836965,0.00019178,2]
[347669824,1736047839201,-503.96194938,0.00019178,2]
[347669825,1736047839210,-151.0,0.00019178,2]
[347669826,1736047839219,-151.0,0.00019178,2]
[347669827,1736047839229,-151.0,0.00019178,2]
[347669828,1736047839240,-154.022532,0.00019178,2]
[347669829,1736047839250,-151.0,0.00019178,2]
[347669830,1736047839260,-151.0,0.00019178,2]
[347669831,1736047839270,-151.0,0.00019178,2]
[347669832,1736047839280,-151.0,0.00019178,2]
[347669833,1736047839289,-151.0,0.00019178,2]
[347669834,1736047839299,-151.0,0.00019178,2]
[347669835,1736047839309,-501.06213942,0.00019178,2]
[347669836,1736047839320,-1046.556816,0.00019178,2]
[347669837,1736047839331,-1046.556816,0.00019178,2]
[347669838,1736047839342,-1046.556816,0.00019178,2]
[347669839,1736047839351,-1046.556816,0.00019178,2]
[347669840,1736047839360,-1046.556816,0.00019178,2]
[347669841,1736047839370,-1046.556816,0.00019178,2]
[347669842,1736047839379,-1046.556816,0.00019178,2]
[347669843,1736047839388,-1046.556816,0.00019178,2]
[347669844,1736047839398,-500.0,0.00019178,2]
[347669845,1736047839407,-500.0,0.00019178,2]
[347669846,1736047839417,-500.0,0.00019178,2]
[347669847,1736047839426,-500.0,0.00019178,2]
[347669848,1736047839436,-500.0,0.00019178,2]
[347669849,1736047839447,-505.09473128,0.00019178,2]
[347669850,1736047839456,-503.29135277,0.00019178,2]
[347669851,1736047839466,-512.97673006,0.00019178,2]
[347669852,1736047839476,-500.0,0.00019178,2]
[347669853,1736047839486,-500.0,0.00019178,2]
[347669854,1736047839496,-500.0,0.00019178,2]
[347669855,1736047839506,-524.53244621,0.00019178,2]
[347669856,1736047839515,-701.58,0.00019178,2]
[347669857,1736047839525,-182.486516,0.00019178,2]
[347669858,1736047839722,-182.486516,0.00019178,2]
[347669859,1736047839732,-182.486516,0.00019178,2]
[347669860,1736047839742,-182.486516,0.00019178,2]
[347669861,1736047839752,-182.486516,0.00019178,2]
[347669862,1736047839761,-182.486516,0.00019178,2]
[347669863,1736047839770,-182.486516,0.00019178,2]
[347669864,1736047839779,-182.486516,0.00019178,2]
[347669865,1736047839789,-242.14281,0.00019178,2]
[347669866,1736047839799,-242.14281,0.00019178,2]
[347669867,1736047839809,-242.14281,0.00019178,2]
[347669868,1736047839819,-242.14281,0.00019178,2]
[347669869,1736047839828,-242.14281,0.00019178,2]
[347669870,1736047839837,-151.0,0.00019178,2]
[347669871,1736047839847,-152.597955,0.00019178,2]
[347669872,1736047839856,-242.14281,0.00019178,2]
[347669873,1736047839866,-242.14281,0.00019178,2]
[347669874,1736047839875,-242.14281,0.00019178,2]
[347669875,1736047839885,-151.0,0.00019178,2]
[347669876,1736047839894,-242.14281,0.00019178,2]
[347669877,1736047839903,-151.0,0.00019178,2]
[347669878,1736047839913,-242.14281,0.00019178,2]
[347669879,1736047839923,-151.0,0.00019178,2]
[347669880,1736047839932,-151.0,0.00019178,2]
[347669881,1736047839942,-151.0,0.00019178,2]
[347669882,1736047839952,-151.0,0.00019178,2]
[347669883,1736047839962,-151.0,0.00019178,2]
[347669884,1736047839971,-500.0,0.00019178,2]
[347669885,1736047839980,-151.0,0.00019178,2]
[347669886,1736047839990,-151.0,0.00019178,2]
[347669887,1736047839999,-151.0,0.00019178,2]
[347669888,1736047840008,-151.0,0.00019178,2]
[347669889,1736047840018,-151.0,0.00019178,2]
[347669890,1736047840027,-200.0,0.00019178,2]
[347669891,1736047840037,-534.55,0.00019178,2]
[347669892,1736047840047,-500.0,0.00019178,2]
[347669893,1736047840056,-500.0,0.00019178,2]
[347669894,1736047840066,-662.91936,0.00019178,2]
[347669895,1736047840076,-504.98796721,0.00019178,2]
[347669896,1736047840086,-662.91936,0.00019178,2]
[347669897,1736047840095,-662.91936,0.00019178,2]
[347669898,1736047840104,-662.91936,0.00019178,2]
[347669899,1736047840114,-662.91936,0.00019178,2]
[347669900,1736047840123,-246.27704058,0.00019178,2]
[347669901,1736047840133,-662.91936,0.00019178,2]
[347669902,1736047840142,-662.91936,0.00019178,2]
[347669903,1736047840151,-662.91936,0.00019178,2]
[347669904,1736047840161,-662.91936,0.00019178,2]
[347669905,1736047840170,-662.91936,0.00019178,2]
[347669906,1736047840179,-500.0,0.00019178,2]
[347669907,1736047840189,-501.03011266,0.00019178,2]
[347669908,1736047840198,-489.71906903,0.00019178,2]
[347669909,1736047840208,-502.4280362,0.00019178,2]
[347669910,1736047840217,-502.7190662,0.00019178,2]
[347669911,1736047840227,-513.20449366,0.00019178,2]
[347669912,1736047840236,-504.12208782,0.00019178,2]
[347669913,1736047840245,-151.0,0.00019178,2]
[347669914,1736047840254,-152.196294,0.00019178,2]
[347669915,1736047840263,-500.0,0.00019178,2]
[347669916,1736047840272,-516.76589008,0.00019178,2]
[347669917,1736047840281,-454.78852,0.00019178,2]
[347669918,1736047840290,-454.78852,0.00019178,2]
[347669919,1736047840300,-454.78852,0.00019178,2]
[347669920,1736047840309,-454.78852,0.00019178,2]
[347669921,1736047840318,-454.78852,0.00019178,2]
[347669922,1736047840327,-454.78852,0.00019178,2]
[347669923,1736047840337,-454.78852,0.00019178,2]
[347669924,1736047840346,-454.78852,0.00019178,2]
[347669925,1736047840355,-454.78852,0.00019178,2]
[347669926,1736047840364,-454.78852,0.00019178,2]
[347669927,1736047840373,-500.0,0.00019178,2]
[347669928,1736047840383,-151.0,0.00019178,2]
[347669929,1736047840392,-151.180717,0.00019178,2]
[347669930,1736047840401,-500.0,0.00019178,2]
[347669931,1736047840410,-509.28348436,0.00019178,2]
[347669932,1736047840419,-500.0,0.00019178,2]
[347669933,1736047840428,-507.10788625,0.00019178,2]
[347669934,1736047840437,-500.0,0.00019178,2]
[347669935,1736047840446,-500.0,0.00019178,2]
[347669936,1736047840455,-372.11797072,0.00019178,2]
[347669937,1736047840464,-501.95784096,0.00019178,2]
[347669938,1736047840474,-500.0,0.00019178,2]
[347669939,1736047840483,-500.0,0.00019178,2]
[347669942,1736047840493,-501.41008848,0.00019178,2]
[347669944,1736047840504,-508.28392425,0.00019178,2]
[347669946,1736047840514,-239.43632409,0.00019178,2]
[347669947,1736047840523,-496.86170148,0.00019178,2]
[347669948,1736047840533,-500.0,0.00019178,2]
[347669949,1736047840542,-502.42342639,0.00019178,2]
[347669950,1736047840551,-1345.83,0.00019178,2]
[347669951,1736047840560,-388.10205458,0.00019178,2]
[347669952,1736047840570,-502.03104918,0.00019178,2]
[347669953,1736047840579,-500.0,0.00019178,2]
[347669954,1736047840588,-500.0,0.00019178,2]
[347669955,1736047840598,-500.0,0.00019178,2]
[347669956,1736047840607,-500.86920216,0.00019178,2]
[347669957,1736047840616,-161.213212,0.00019178,2]
[347669959,1736047840625,-503.80225836,0.00019178,2]
[347669961,1736047840634,-633.84,0.00019178,2]
[347669962,1736047840643,-503.97386531,0.00019178,2]
[347669964,1736047840652,-500.0,0.00019178,2]
[347669966,1736047840662,-500.0,0.00019178,2]
[347669967,1736047840672,-504.4873271,0.00019178,2]
[347669968,1736047840681,-500.0,0.00019178,2]
[347669969,1736047840690,-500.0,0.00019178,2]
[347669970,1736047840699,-352.39591075,0.00019178,2]
[347669971,1736047840708,-151.0,0.00019178,2]
[347669972,1736047840718,-500.0,0.00019178,2]
[347669973,1736047840727,-151.0,0.00019178,2]
[347669974,1736047840736,-151.0,0.00019178,2]
[347669975,1736047840745,-151.0,0.00019178,2]
[347669976,1736047840754,-793.4,0.00019178,2]
[347669978,1736047840763,-151.0,0.00019178,2]
[347669980,1736047840773,-151.0,0.00019178,2]
[347669982,1736047840782,-151.0,0.00019178,2]
[347669984,1736047840791,-151.0,0.00019178,2]
[347669986,1736047840800,-192.815951,0.00019178,2]
[347669988,1736047840809,-500.0,0.00019178,2]
[347669990,1736047840820,-573.44,0.00019178,2]
[347669992,1736047840829,-767.81,0.00019178,2]
[347669994,1736047840839,-500.0,0.00019178,2]
[347669996,1736047840848,-2077.296895,0.00019178,2]
[347669998,1736047840858,-2077.296895,0.00019178,2]
[347670000,1736047840867,-151.0,0.00019178,2]
[347670002,1736047840876,-151.0,0.00019178,2]
[347670004,1736047840885,-151.0,0.00019178,2]
[347670006,1736047840895,-151.0,0.00019178,2]
[347670008,1736047840904,-151.0,0.00019178,2]
[347670010,1736047840913,-151.0,0.00019178,2]
[347670012,1736047840922,-151.0,0.00019178,2]
[347670014,1736047840931,-151.0,0.00019178,2]
[347670016,1736047840940,-502.77334124,0.00019178,2]
[347670017,1736047840949,-500.0,0.00019178,2]
[347670019,1736047840959,-500.0,0.00019178,2]
[347670021,1736047840968,-215.306983,0.00019178,2]
[347670023,1736047840977,-500.2959187,0.00019178,2]
[347670025,1736047840987,-215.306983,0.00019178,2]
[347670027,1736047840995,-215.306983,0.00019178,2]
[347670029,1736047841005,-215.306983,0.00019178,2]
[347670031,1736047841014,-500.0,0.00019178,2]
[347670033,1736047841023,-215.306983,0.00019178,2]
[347670035,1736047841032,-215.306983,0.00019178,2]
[347670037,1736047841041,-215.306983,0.00019178,2]
[347670040,1736047841051,-215.306983,0.00019178,2]
[347670042,1736047841061,-500.0,0.00019178,2]
[347670044,1736047841072,-512.26206726,0.00019178,2]
[347670046,1736047841081,-215.306983,0.00019178,2]
[347670048,1736047841090,-215.306983,0.00019178,2]
[347670050,1736047841099,-215.306983,0.00019178,2]
[347670052,1736047841109,-215.306983,0.00019178,2]
[347670054,1736047841118,-215.306983,0.00019178,2]
[347670056,1736047841127,-500.0,0.00019178,2]
[347670058,1736047841137,-215.306983,0.00019178,2]
[347670060,1736047841146,-215.306983,0.00019178,2]
[347670062,1736047841155,-215.306983,0.00019178,2]
[347670064,1736047841164,-500.0,0.00019178,2]
[347670066,1736047841174,-500.0,0.00019178,2]
[347670068,1736047841183,-509.75182294,0.00019178,2]
[347670070,1736047841192,-502.20294352,0.00019178,2]
[347670072,1736047841201,-500.0,0.00019178,2]
[347670074,1736047841210,-500.0,0.00019178,2]
[347670076,1736047841219,-500.0,0.00019178,2]
[347670078,1736047841229,-487.43105893,0.00019178,2]
[347670080,1736047841238,-508.83356083,0.00019178,2]
[347670082,1736047841247,-505.33626216,0.00019178,2]
[347670084,1736047841256,-500.0,0.00019178,2]
[347670086,1736047841265,-500.0,0.00019178,2]
[347670088,1736047841275,-500.0,0.00019178,2]
[347670090,1736047841283,-500.0,0.00019178,2]
[347670092,1736047841293,-501.35423862,0.00019178,2]
[347670094,1736047841302,-501.56216406,0.00019178,2]
[347670096,1736047841311,-500.0,0.00019178,2]
[347670097,1736047841321,-565.74960832,0.00019178,2]
[347670098,1736047841330,-631.95,0.00019178,2]
[347670099,1736047841339,-500.0,0.00019178,2]
[347670100,1736047841348,-500.0,0.00019178,2]
[347670101,1736047841358,-504.64779304,0.00019178,2]
[347670102,1736047841367,-500.0,0.00019178,2]
[347670103,1736047841376,-840.36,0.00019178,2]
[347670104,1736047841385,-501.88452558,0.00019178,2]
[347670105,1736047841395,-150.06,0.00019178,2]
[347670106,1736047841404,-500.0,0.00019178,2]
[347670107,1736047841413,-152.34592464,0.00019178,2]
[347670108,1736047841422,-500.0,0.00019178,2]
[347670109,1736047841431,-150.85975222,0.00019178,2]
[347670110,1736047841440,-500.0,0.00019178,2]
[347670111,1736047841450,-150.72616585,0.00019178,2]
[347670112,1736047841459,-500.0,0.00019178,2]
[347670113,1736047841468,-1180.0,0.00019178,2]
[347670114,1736047841477,-152.625609,0.00019178,2]
[347670116,1736047841487,-505.7079161,0.00019178,2]
[347670118,1736047841498,-500.0,0.00019178,2]
[347670120,1736047841507,-500.0,0.00019178,2]
[347670122,1736047841516,-500.0,0.00019178,2]
[347670124,1736047841529,-270.528353,0.00019178,2]
[347670126,1736047841539,-1092.74,0.00019178,2]
[347670128,1736047841550,-191.364666,0.00019178,2]
[347670130,1736047841560,-503.5645356,0.00019178,2]
[347670132,1736047841573,-191.364666,0.00019178,2]
[347670134,1736047841583,-270.528353,0.00019178,2]
[347670136,1736047841593,-270.528353,0.00019178,2]
[347670138,1736047841603,-270.528353,0.00019178,2]
[347670140,1736047841612,-191.364666,0.00019178,2]
[347670142,1736047841621,-270.528353,0.00019178,2]
[347670144,1736047841631,-191.364666,0.00019178,2]
[347670146,1736047841640,-270.528353,0.00019178,2]
[347670148,1736047841650,-191.364666,0.00019178,2]
[347670150,1736047841659,-270.528353,0.00019178,2]
[347670152,1736047841668,-191.364666,0.00019178,2]
[347670153,1736047841677,-270.528353,0.00019178,2]
[347670154,1736047841687,-191.364666,0.00019178,2]
[347670155,1736047841696,-151.0,0.00019178,2]
[347670156,1736047841706,-191.364666,0.00019178,2]
[347670158,1736047841715,-151.0,0.00019178,2]
[347670160,1736047841724,-270.528353,0.00019178,2]
[347670162,1736047841733,-151.0,0.00019178,2]
[347670164,1736047841742,-270.528353,0.00019178,2]
[347670166,1736047841752,-158.800107,0.00019178,2]
[347670168,1736047841762,-191.364666,0.00019178,2]
[347670170,1736047841771,-270.528353,0.00019178,2]
[347670172,1736047841780,-191.364666,0.00019178,2]
[347670173,1736047841789,-500.0,0.00019178,2]
[347670174,1736047841799,-270.528353,0.00019178,2]
[347670175,1736047841808,-191.364666,0.00019178,2]
[347670176,1736047841818,-191.364666,0.00019178,2]
[347670177,1736047841827,-270.528353,0.00019178,2]
[347670178,1736047841836,-191.364666,0.00019178,2]
[347670179,1736047841845,-270.528353,0.00019178,2]
[347670180,1736047841855,-191.364666,0.00019178,2]
[347670181,1736047841865,-270.528353,0.00019178,2]
[347670182,1736047841875,-270.528353,0.00019178,2]
[347670183,1736047841884,-191.364666,0.00019178,2]
[347670184,1736047841894,-191.364666,0.00019178,2]
[347670185,1736047841903,-500.0,0.00019178,2]
[347670186,1736047841912,-500.0,0.00019178,2]
[347670187,1736047841922,-539.11527139,0.00019178,2]
[347670188,1736047841931,-383.698959,0.00019178,2]
[347670189,1736047841940,-500.0,0.00019178,2]
[347670190,1736047841949,-383.698959,0.00019178,2]
[347670191,1736047841958,-383.698959,0.00019178,2]
[347670192,1736047841968,-383.698959,0.00019178,2]
[347670193,1736047841977,-383.698959,0.00019178,2]
[347670194,1736047841986,-383.698959,0.00019178,2]
[347670195,1736047841994,-383.698959,0.00019178,2]
[347670196,1736047842004,-383.698959,0.00019178,2]
[347670197,1736047842013,-383.698959,0.00019178,2]
[347670198,1736047842022,-383.698959,0.00019178,2]
[347670199,1736047842031,-383.698959,0.00019178,2]
[347670200,1736047842039,-383.698959,0.00019178,2]
[347670201,1736047842048,-500.0,0.00019178,2]
[347670202,1736047842058,-383.698959,0.00019178,2]
[347670203,1736047842068,-1029.7,0.00019178,2]
[347670204,1736047842076,-686.72,0.00019178,2]
[347670205,1736047842086,-383.698959,0.00019178,2]
[347670206,1736047842095,-383.698959,0.00019178,2]
[347670207,1736047842104,-383.698959,0.00019178,2]
[347670208,1736047842113,-502.81900848,0.00019178,2]
[347670209,1736047842124,-505.91600309,0.00019178,2]
[347670210,1736047842135,-693.88,0.00019178,2]
[347670211,1736047842144,-500.0,0.00019178,2]
[347670212,1736047842154,-502.80953497,0.00019178,2]
[347670213,1736047842163,-500.0,0.00019178,2]
[347670214,1736047842172,-561.93,0.00019178,2]
[347670215,1736047842183,-500.0,0.00019178,2]
[347670216,1736047842192,-500.0,0.00019178,2]
[347670217,1736047842201,-500.0,0.00019178,2]
[347670218,1736047842212,-500.0,0.00019178,2]
[347670219,1736047842221,-500.0,0.00019178,2]
[347670220,1736047842231,-500.0,0.00019178,2]
[347670221,1736047842240,-500.0,0.00019178,2]
[347670222,1736047842249,-252.07300638,0.00019178,2]
[347670223,1736047842258,-500.0,0.00019178,2]
[347670224,1736047842268,-500.0,0.00019178,2]
[347670225,1736047842278,-500.0,0.00019178,2]
[347670226,1736047842287,-500.0,0.00019178,2]
[347670227,1736047842296,-757.35,0.00019178,2]
[347670228,1736047842305,-502.91367625,0.00019178,2]
[347670229,1736047842315,-500.0,0.00019178,2]
[347670230,1736047842323,-502.25518909,0.00019178,2]
[347670231,1736047842332,-502.91770502,0.00019178,2]
[347670232,1736047842342,-500.0,0.00019178,2]
[347670233,1736047842353,-588.39,0.00019178,2]
[347670234,1736047842362,-653.38,0.00019178,2]
[347670235,1736047842371,-500.0,0.00019178,2]
[347670236,1736047842381,-291.68831215,0.00019178,2]
[347670237,1736047842392,-500.0,0.00019178,2]
[347670238,1736047842401,-500.0,0.00019178,2]
[347670239,1736047842411,-504.56529049,0.00019178,2]
[347670240,1736047842420,-500.0,0.00019178,2]
[347670241,1736047842429,-500.0,0.00019178,2]
[347670242,1736047842439,-514.28035311,0.00019178,2]
[347670243,1736047842448,-503.85192987,0.00019178,2]
[347670244,1736047842458,-500.0,0.00019178,2]
[347670245,1736047842467,-513.76108104,0.00019178,2]
[347670246,1736047842477,-1044.48,0.00019178,2]
[347670247,1736047842486,-502.96095932,0.00019178,2]
[347670248,1736047842496,-502.23918099,0.00019178,2]
[347670249,1736047842506,-696.96,0.00019178,2]
[347670250,1736047842515,-457.25545187,0.00019178,2]
[347670251,1736047842524,-500.0,0.00019178,2]
[347670252,1736047842533,-503.25012911,0.00019178,2]
[347670253,1736047842542,-500.0,0.00019178,2]
[347670254,1736047842551,-505.40107053,0.00019178,2]
[347670255,1736047842560,-779.98,0.00019178,2]
[347670256,1736047842570,-504.10513418,0.00019178,2]
[347670257,1736047842579,-581.46489747,0.00019178,2]
[347670258,1736047842589,-505.08780129,0.00019178,2]
[347670259,1736047842599,-501.82032512,0.00019178,2]
[347670260,1736047842608,-617.8613784,0.00019178,2]
[347670261,1736047842618,-500.0,0.00019178,2]
[347670262,1736047842627,-500.0,0.00019178,2]
[347670263,1736047842636,-500.0,0.00019178,2]
[347670264,1736047842646,-500.0,0.00019178,2]
[347670265,1736047842655,-500.0,0.00019178,2]
[347670266,1736047842663,-500.0,0.00019178,2]
[347670267,1736047842673,-500.0,0.00019178,2]
[347670268,1736047842682,-527.73844431,0.00019178,2]
[347670269,1736047842692,-500.0,0.00019178,2]